bitfinex/quotes_BTCUSD_20250711
["timestamp","ask_amount","ask_price","bid_price","bid_amount"]
[1752253847108,0.02657552,117570.0,117550.0,0.26679993]
[1752253847336,0.79991076,117560.0,117550.0,0.26679993]
[1752253847561,0.77480769,117560.0,117550.0,0.26679993]
[1752253848507,0.75540928,117560.0,117550.0,0.26667168]
[1752253849182,0.75540928,117560.0,117550.0,0.24609993]
[1752253849399,0.341,117560.0,117550.0,0.24609993]
[1752253849613,0.77580769,117560.0,117550.0,0.23759952]
[1752253849829,0.77580769,117560.0,117550.0,0.22909911]
[1752253850042,0.77580769,117560.0,117550.0,0.22419993]
[1752253850260,0.77580769,117560.0,117550.0,0.21569952]
[1752253850487,0.77580769,117560.0,117550.0,0.08193952]
[1752253850709,0.03570822,117560.0,117550.0,0.21573952]
[1752253850923,0.37570822,117560.0,117550.0,0.21573952]
[1752253851144,0.37570822,117560.0,117550.0,0.28028037]
[1752253851145,0.03570822,117560.0,117550.0,0.28028037]
[1752253851364,0.03570822,117560.0,117550.0,0.33028037]
[1752253851578,0.03570822,117560.0,117550.0,0.35578537]
[1752253851789,0.03570822,117560.0,117550.0,0.53443274]
[1752253852051,0.03570822,117560.0,117550.0,0.35578537]
[1752253852270,0.03570822,117560.0,117550.0,0.37698537]
[1752253852476,0.03570822,117560.0,117550.0,0.395665]
[1752253852698,0.03570822,117560.0,117550.0,0.58281917]
[1752253852699,0.03470822,117560.0,117550.0,0.58281917]
[1752253852915,0.03470822,117560.0,117550.0,1.05824009]
[1752253853130,0.00049722,117570.0,117560.0,0.28577303]
[1752253853375,0.00049722,117570.0,117560.0,0.60141873]
[1752253853583,0.00049722,117570.0,117560.0,0.41720041]
[1752253853791,0.00049722,117570.0,117560.0,0.46720041]
[1752253854002,0.00049722,117570.0,117560.0,0.83294341]
[1752253855963,0.03524397,117570.0,117560.0,1.01457506]
[1752253856201,0.03524397,117570.0,117560.0,0.83594295]
[1752253856416,0.32160583,117590.0,117580.0,0.0424]
[1752253856628,0.32160583,117590.0,117580.0,0.41527208]
[1752253856842,0.32160583,117590.0,117580.0,0.75333587]
[1752253857063,0.50325396,117600.0,117580.0,0.75625587]
[1752253857064,0.06844627,117600.0,117580.0,0.75625587]
[1752253857290,0.50325396,117600.0,117590.0,0.08542993]
[1752253857505,0.49305695,117600.0,117590.0,0.1011891]
[1752253857721,0.49305695,117600.0,117590.0,0.4433391]
[1752253858142,0.49515695,117600.0,117590.0,0.4433391]
[1752253858595,0.83515695,117600.0,117590.0,0.4433391]
[1752253858820,0.83605695,117600.0,117590.0,0.4433391]
[1752253859036,0.83605695,117600.0,117590.0,0.55429995]
[1752253859037,0.003,117600.0,117590.0,0.55429995]
[1752253859246,0.00017893,117600.0,117590.0,0.55429995]
[1752253859670,0.0355366,117600.0,117590.0,0.55439995]
[1752253859916,0.00017893,117600.0,117590.0,0.55439995]
[1752253860147,0.03413873,117600.0,117590.0,0.73298656]
[1752253860361,0.00017893,117600.0,117590.0,0.74149061]
[1752253860568,0.00017893,117600.0,117590.0,0.73423541]
[1752253860776,0.00017893,117600.0,117590.0,0.74149366]
[1752253860984,0.002,117610.0,117600.0,0.05]
[1752253861207,0.002,117610.0,117600.0,0.65832019]
[1752253861438,0.002,117610.0,117600.0,1.07476337]
[1752253861656,0.002,117610.0,117600.0,1.10025737]
[1752253861874,0.002,117610.0,117600.0,0.88041478]
[1752253862089,0.002,117610.0,117600.0,1.05898612]
[1752253862512,0.03694025,117610.0,117600.0,1.00898612]
[1752253862745,0.03694025,117610.0,117600.0,1.06948937]
[1752253862960,0.34,117620.0,117610.0,0.27055616]
[1752253863178,0.34,117620.0,117610.0,0.17941993]
[1752253863409,0.43680769,117630.0,117610.0,0.52244993]
[1752253863623,0.77480769,117620.0,117610.0,0.45156085]
[1752253863850,0.77480769,117620.0,117610.0,0.80459078]
[1752253864076,0.34,117620.0,117610.0,0.80459078]
[1752253864294,0.03661583,117630.0,117620.0,0.35208493]
[1752253864295,0.002,117630.0,117620.0,0.35208493]
[1752253864526,0.002,117630.0,117620.0,0.64634486]
[1752253864731,0.002,117630.0,117620.0,0.98642486]
[1752253864955,0.002,117630.0,117620.0,0.97792342]
[1752253865221,0.002,117630.0,117620.0,0.96942176]
[1752253865433,0.00029617,117630.0,117620.0,1.02041445]
[1752253865646,0.00029617,117630.0,117620.0,1.02054122]
[1752253865854,0.49535771,117660.0,117640.0,0.092]
[1752253866083,0.83535771,117660.0,117650.0,0.35758487]
[1752253866305,0.1027959,117660.0,117650.0,0.48194806]
[1752253866538,0.53760359,117660.0,117650.0,0.73666221]
[1752253866745,0.87760359,117660.0,117650.0,0.73666221]
[1752253867345,0.86741151,117660.0,117650.0,0.73666221]
[1752253868356,0.80915732,117660.0,117650.0,0.73766221]
[1752253869128,0.37434963,117660.0,117650.0,0.74058221]
[1752253869332,0.37434963,117660.0,117650.0,0.73766221]
[1752253869535,0.80915732,117660.0,117650.0,0.73766221]
[1752253870406,0.81428732,117660.0,117650.0,0.73766221]
[1752253871279,0.81428732,117660.0,117650.0,0.73567221]
[1752253871673,1.29399501,117660.0,117650.0,0.71198721]
[1752253871859,0.85918732,117660.0,117650.0,0.71198721]
[1752253872090,0.42437963,117660.0,117650.0,0.71198721]
[1752253872291,0.85918732,117660.0,117650.0,0.71198721]
[1752253872464,0.81428732,117660.0,117650.0,0.71198721]
[1752253872965,0.37434963,117660.0,117650.0,0.71412721]
[1752253873601,0.80915732,117660.0,117650.0,0.71412721]
[1752253873810,0.37434963,117660.0,117650.0,0.71412721]
[1752253874017,0.80915732,117660.0,117650.0,0.71412721]
[1752253874411,0.80915732,117660.0,117650.0,0.71198721]
[1752253874638,0.80915732,117660.0,117650.0,0.71412721]
[1752253875758,0.79896481,117660.0,117650.0,0.71412721]
[1752253877491,0.78877254,117660.0,117650.0,0.71412721]
[1752253877901,0.35396485,117660.0,117650.0,0.71412721]
[1752253878113,0.78877254,117660.0,117650.0,0.71412721]
[1752253878321,0.35396485,117660.0,117650.0,0.71412721]
[1752253878535,0.78877254,117660.0,117650.0,0.71412721]
[1752253878762,0.35396485,117660.0,117650.0,0.71412721]
[1752253878971,0.01396485,117660.0,117650.0,0.82508806]
[1752253879145,0.34,117660.0,117650.0,0.82508806]
[1752253879418,0.43680769,117670.0,117650.0,0.82216806]
[1752253879697,0.43680769,117670.0,117660.0,0.12369554]
[1752253879698,0.002,117670.0,117660.0,0.12369554]
[1752253879926,0.342,117670.0,117660.0,0.17762597]
[1752253880137,0.342,117670.0,117660.0,0.51546121]
[1752253880342,0.342,117670.0,117660.0,0.51254121]
[1752253880527,0.77680769,117670.0,117660.0,0.51254121]
[1752253880987,0.75642655,117670.0,117660.0,0.51266798]
[1752253881402,0.79177671,117670.0,117660.0,0.51266798]
[1752253881816,0.79177671,117670.0,117660.0,0.4969407]
[1752253882025,0.79177671,117670.0,117660.0,0.51261157]
[1752253882245,0.47015785,117670.0,117660.0,0.51553157]
[1752253882453,0.43480769,117670.0,117660.0,0.51553157]
[1752253882864,0.34,117670.0,117660.0,0.51553157]
[1752253883275,0.34,117670.0,117660.0,0.51261157]
[1752253884359,0.43480769,117670.0,117660.0,0.51261157]
[1752253885435,0.43480769,117670.0,117660.0,0.46881157]
[1752253886987,0.43480769,117680.0,117670.0,0.0455]
[1752253887200,0.34,117670.0,117660.0,0.41399077]
[1752253887412,0.43480769,117680.0,117670.0,0.00214]
[1752253887622,0.43480769,117680.0,117670.0,0.10324119]
[1752253887840,0.00197,117680.0,117670.0,0.10110119]
[1752253888093,0.00197,117680.0,117670.0,0.09260999]
[1752253888094,0.48653769,117680.0,117670.0,0.09260999]
[1752253888277,0.48653769,117680.0,117670.0,0.21987879]
[1752253888732,0.48653769,117680.0,117670.0,0.21138759]
[1752253889152,0.50107854,117680.0,117670.0,0.20289639]
[1752253889360,0.84107854,117680.0,117670.0,0.15143126]
[1752253889575,0.84107854,117680.0,117670.0,0.14294006]
[1752253889986,0.3854,117670.0,117660.0,0.00012677]
[1752253890191,0.82217769,117670.0,117660.0,0.2212367]
[1752253890399,0.82533769,117670.0,117660.0,0.2212367]
[1752253890609,0.85094065,117670.0,117660.0,0.2212367]
[1752253891103,1.28574834,117670.0,117660.0,0.2212367]
[1752253891514,1.30028919,117670.0,117660.0,0.13568]
[1752253891729,1.30028919,117670.0,117660.0,0.1271873]
[1752253892192,0.8654815,117670.0,117660.0,0.1186946]
[1752253892616,0.8654815,117670.0,117660.0,0.1102019]
[1752253893029,0.8654815,117670.0,117660.0,0.1017092]
[1752253893466,0.8654815,117670.0,117660.0,0.0932165]
[1752253893896,0.85094065,117670.0,117660.0,0.17864643]
[1752253894541,0.85094065,117670.0,117660.0,0.17015373]
[1752253894983,0.85094065,117670.0,117660.0,0.16166103]
[1752253895213,0.8654815,117670.0,117660.0,0.16166103]
[1752253895426,0.8654815,117670.0,117660.0,0.15316833]
[1752253895894,0.85528935,117670.0,117660.0,0.14467563]
[1752253896109,0.85528935,117670.0,117660.0,0.13618229]
[1752253896547,0.84509724,117670.0,117660.0,0.12768895]
[1752253896970,0.84509724,117670.0,117660.0,0.11919561]
[1752253897152,0.80554065,117670.0,117660.0,0.11919561]
[1752253902077,0.80554065,117670.0,117660.0,0.1349256]
[1752253902608,0.78515778,117670.0,117660.0,0.1349256]
[1752253902744,0.78718778,117670.0,117660.0,0.1349256]
[1752253902946,0.78718778,117670.0,117660.0,0.13492917]
[1752253903953,0.78718778,117670.0,117660.0,0.14003917]
[1752253904370,0.78718778,117670.0,117660.0,0.13695917]
[1752253905913,0.77699632,117670.0,117660.0,0.13695917]
[1752253906364,0.77496632,117670.0,117660.0,0.16323917]
[1752253906580,0.7647749,117670.0,117660.0,0.18613917]
[1752253906793,0.32996721,117670.0,117660.0,0.18613917]
[1752253907463,0.43480769,117670.0,117660.0,0.21162317]
[1752253908530,0.77480769,117670.0,117660.0,0.21162317]
[1752253909363,0.34,117670.0,117660.0,0.21162317]
[1752253909586,0.77480769,117670.0,117660.0,0.21162317]
[1752253910624,0.75442715,117670.0,117660.0,0.55157317]
[1752253912609,0.03589113,117690.0,117680.0,0.046]
[1752253912824,0.03589113,117690.0,117680.0,0.42139789]
[1752253912825,0.47069882,117690.0,117680.0,0.42139789]
[1752253913036,0.47069882,117690.0,117680.0,0.76225349]
[1752253913245,0.81069882,117690.0,117680.0,0.76225349]
[1752253914081,0.81069882,117690.0,117680.0,0.76325349]
[1752253915757,0.81069882,117690.0,117680.0,0.74125349]
[1752253915974,0.80050965,117690.0,117680.0,0.74125349]
[1752253916357,0.80050965,117690.0,117680.0,0.79125349]
[1752253916597,0.79032127,117690.0,117680.0,0.79125349]
[1752253917421,0.79235127,117690.0,117680.0,0.76725349]
[1752253918677,0.77683769,117690.0,117680.0,0.76725349]
[1752253919484,0.77480769,117690.0,117680.0,0.76725349]
[1752253919683,0.77480769,117690.0,117680.0,0.81465349]
[1752253920273,0.80497989,117690.0,117680.0,0.81465349]
[1752253920670,0.80497989,117690.0,117680.0,0.79215349]
[1752253920876,0.80497989,117690.0,117680.0,0.76517349]
[1752253920877,1.26129234,117690.0,117680.0,0.76517349]
[1752253921124,1.28827234,117690.0,117680.0,0.76314349]
[1752253921327,1.28827234,117690.0,117680.0,0.76275583]
[1752253921512,1.31307234,117690.0,117680.0,0.74604993]
[1752253921718,1.31307234,117690.0,117680.0,0.76175616]
[1752253921902,1.31307234,117690.0,117680.0,0.76375616]
[1752253922463,1.31307234,117690.0,117680.0,0.76175616]
[1752253923143,0.85822435,117690.0,117680.0,0.76275616]
[1752253923426,0.78342435,117690.0,117680.0,0.76175616]
[1752253924899,0.80682435,117690.0,117680.0,0.76175616]
[1752253925546,0.8213652,117690.0,117680.0,0.54132623]
[1752253925951,0.81117511,117690.0,117680.0,0.53283646]
[1752253926402,0.37693296,117690.0,117680.0,0.52434669]
[1752253926611,0.80098502,117690.0,117680.0,0.52434669]
[1752253926824,0.80098502,117690.0,117680.0,0.51585692]
[1752253927269,0.80098502,117690.0,117680.0,0.50736715]
[1752253927483,0.80098502,117690.0,117680.0,0.36415656]
[1752253927700,0.80098502,117690.0,117680.0,0.49923656]
[1752253927904,0.80098502,117690.0,117680.0,0.49074597]
[1752253928309,0.80098502,117690.0,117680.0,0.48225538]
[1752253928726,0.80098502,117690.0,117680.0,0.47276479]
[1752253929137,0.80098502,117690.0,117680.0,0.4642742]
[1752253929341,0.06094085,117670.0,117660.0,0.002]
[1752253929558,0.06094085,117670.0,117640.0,0.002]
[1752253929559,0.0471,117650.0,117640.0,0.13724]
[1752253929766,1.2329143,117650.0,117640.0,0.22266993]
[1752253929970,1.2105143,117650.0,117640.0,0.22283675]
[1752253930179,1.2358443,117650.0,117640.0,0.22283675]
[1752253930389,1.2605443,117650.0,117640.0,0.08755675]
[1752253930598,0.3635,117640.0,117620.0,0.002]
[1752253930806,0.79934215,117630.0,117620.0,0.00212745]
[1752253931016,0.82284215,117630.0,117620.0,0.13752745]
[1752253931221,0.82577215,117630.0,117620.0,0.13752745]
[1752253931534,0.82577215,117630.0,117620.0,0.22295738]
[1752253931734,0.77624215,117630.0,117620.0,0.22496738]
[1752253932101,0.77624215,117630.0,117620.0,0.22492738]
[1752253932307,0.77624215,117630.0,117620.0,0.22291738]
[1752253932519,0.80117215,117630.0,117620.0,0.22291738]
[1752253932740,0.80117215,117630.0,117620.0,0.22491738]
[1752253933173,0.82689431,117630.0,117620.0,0.22591738]
[1752253935838,0.39265216,117630.0,117620.0,0.22591738]
[1752253936047,0.79996431,117630.0,117620.0,0.23094738]
[1752253936294,0.79996431,117630.0,117620.0,0.25444738]
[1752253936505,0.79996431,117630.0,117620.0,0.23094738]
[1752253936718,0.78977113,117630.0,117620.0,0.23094738]
[1752253937353,0.78977113,117630.0,117620.0,0.22792738]
[1752253937354,0.79177113,117630.0,117620.0,0.22792738]
[1752253937790,0.84150113,117630.0,117620.0,0.22591738]
[1752253938002,0.84150113,117630.0,117620.0,0.14048745]
[1752253938003,0.85604198,117630.0,117620.0,0.14048745]
[1752253938631,0.85604198,117630.0,117620.0,0.13199156]
[1752253938915,1.29028413,117630.0,117620.0,0.13099156]
[1752253939114,1.44839908,117630.0,117620.0,0.12049634]
[1752253939345,0.0468,117610.0,117600.0,0.20576]
[1752253939566,1.23982469,117610.0,117600.0,0.42649869]
[1752253941409,1.23982469,117610.0,117600.0,0.23844301]
[1752253941634,1.23982469,117610.0,117600.0,0.24044301]
[1752253941860,1.23982469,117610.0,117600.0,0.24144301]
[1752253942541,1.23982469,117610.0,117600.0,0.23944301]
[1752253942772,1.23982469,117610.0,117600.0,0.23844301]
[1752253942992,1.25436554,117610.0,117600.0,0.15301308]
[1752253943650,1.25436554,117610.0,117600.0,0.14451786]
[1752253943905,1.25436554,117610.0,117600.0,0.14450854]
[1752253944128,1.27732049,117610.0,117600.0,0.13601332]
[1752253944342,1.41228049,117610.0,117600.0,0.12031832]
[1752253944535,1.41228049,117610.0,117600.0,0.1118231]
[1752253945026,1.41228049,117610.0,117600.0,0.10332788]
[1752253945253,1.41228049,117610.0,117600.0,0.09483266]
[1752253945474,0.3652,117600.0,117590.0,0.13498]
[1752253945685,1.2386143,117600.0,117590.0,0.13512887]
[1752253946690,1.22841842,117600.0,117590.0,0.13512887]
[1752253946903,1.25301842,117600.0,117590.0,0.13512887]
[1752253949605,1.23262665,117600.0,117590.0,0.13512887]
[1752253949825,1.23362665,117600.0,117590.0,0.13512887]
[1752253950520,0.7944545,117600.0,117590.0,0.13512887]
[1752253950748,0.001,117600.0,117590.0,0.2509888]
[1752253950975,0.43524215,117600.0,117590.0,0.2754888]
[1752253952603,0.001,117600.0,117590.0,0.2754888]
[1752253952825,0.43524215,117600.0,117590.0,0.2754888]
[1752253954010,0.43524215,117600.0,117590.0,0.2764888]
[1752253954851,0.43424215,117600.0,117590.0,0.2764888]
[1752253955539,0.77424215,117600.0,117590.0,0.2764888]
[1752253956655,0.34,117600.0,117590.0,0.2764888]
[1752253956904,0.77424215,117600.0,117590.0,0.2764888]
[1752253959878,1.2104843,117600.0,117590.0,0.2764888]
[1752253960047,1.2104843,117600.0,117590.0,0.2235688]
[1752253960630,1.2135143,117600.0,117590.0,0.2215588]
[1752253961542,1.2378143,117600.0,117590.0,0.2215588]
[1752253962075,1.2135143,117600.0,117590.0,0.2215588]
[1752253964305,1.2616143,117600.0,117590.0,0.2241188]
[1752253964866,1.27615515,117600.0,117590.0,0.2241188]
[1752253966075,1.27615515,117600.0,117590.0,0.13868887]
[1752253966882,1.29837899,117600.0,117590.0,0.13868887]
[1752253967242,1.28818126,117600.0,117590.0,0.13868887]
[1752253970262,1.24008126,117600.0,117590.0,0.14084887]
[1752253970501,1.22251041,117600.0,117590.0,0.2541488]
[1752253971414,1.22251041,117600.0,117590.0,0.2262788]
[1752253972339,0.89270814,117600.0,117590.0,0.2548488]
[1752253972567,0.89070814,117600.0,117590.0,0.2808488]
[1752253972788,1.23070814,117600.0,117590.0,0.2808488]
[1752253973223,1.23280814,117600.0,117590.0,0.2262788]
[1752253975035,0.78745407,117600.0,117590.0,0.2262788]
[1752253975257,1.23280814,117600.0,117590.0,0.21381801]
[1752253976350,1.23583814,117600.0,117590.0,0.21165801]
[1752253977193,1.22563996,117600.0,117590.0,0.21165801]
[1752253977404,1.23583814,117600.0,117590.0,0.21165801]
[1752253978450,1.23583814,117600.0,117590.0,0.08542993]
[1752253978679,1.23583814,117600.0,117590.0,0.22210993]
[1752253978872,1.28563814,117600.0,117590.0,0.22210993]
[1752253979549,1.28663814,117600.0,117590.0,0.22210993]
[1752253979786,1.28763814,117600.0,117590.0,0.22210993]
[1752253980478,1.30217899,117600.0,117590.0,0.13668]
[1752253982135,1.23480814,117600.0,117590.0,0.22426993]
[1752253982863,1.23480814,117600.0,117590.0,0.2400719]
[1752253983087,1.21441242,117600.0,117590.0,0.2379119]
[1752253984766,0.76695835,117600.0,117590.0,0.1569619]
[1752253985102,0.31140655,117600.0,117590.0,0.2935219]
[1752253985308,0.75676062,117600.0,117590.0,0.2935219]
[1752253986253,0.75576062,117600.0,117590.0,0.2935219]
[1752253986452,1.20111469,117600.0,117590.0,0.2935219]
[1752253987329,1.19091727,117600.0,117590.0,0.2935219]
[1752253987711,1.18991727,117600.0,117590.0,0.2935219]
[1752253988119,1.18991727,117600.0,117590.0,0.2945219]
[1752253989699,1.19201727,117600.0,117590.0,0.1547919]
[1752253989887,1.19506727,117600.0,117590.0,0.2388319]
[1752253990495,1.19201727,117600.0,117590.0,0.2388319]
[1752253990733,1.18991727,117600.0,117590.0,0.2925919]
[1752253990908,1.16952261,117600.0,117590.0,0.2955619]
[1752253992389,1.17166261,117600.0,117590.0,0.2925919]
[1752253992592,1.17166261,117600.0,117590.0,0.2662919]
[1752253993123,1.17166261,117600.0,117590.0,0.2407919]
[1752253994393,1.20597938,117600.0,117590.0,0.2407919]
[1752253995647,1.20597938,117600.0,117590.0,0.2437619]
[1752253996093,1.20597938,117600.0,117590.0,0.2698619]
[1752253997261,1.19364203,117600.0,117590.0,0.2945619]
[1752253997733,1.19578203,117600.0,117590.0,0.2945619]
[1752253998120,1.24963203,117600.0,117590.0,0.2381519]
[1752253998740,1.22433203,117600.0,117590.0,0.2381519]
[1752253998945,1.19883203,117600.0,117590.0,0.2381519]
[1752253999587,1.70952695,117600.0,117590.0,0.01680197]
[1752253999787,1.84532695,117600.0,117590.0,0.00830444]
[1752254000139,1.29604899,117590.0,117580.0,0.1378]
[1752254000340,1.29604899,117590.0,117580.0,0.13794899]
[1752254000341,1.30123899,117590.0,117580.0,0.13794899]
[1752254000555,1.43703899,117590.0,117580.0,0.00214899]
[1752254000752,0.06534085,117580.0,117570.0,0.1358]
[1752254000930,1.28084011,117580.0,117570.0,0.1358]
[1752254002402,1.41660011,117580.0,117570.0,0.1358]
[1752254003164,1.41141899,117580.0,117570.0,0.1358]
[1752254003365,0.78749407,117580.0,117570.0,0.25145993]
[1752254003575,0.78749407,117580.0,117570.0,0.24848993]
[1752254003789,0.78749407,117580.0,117570.0,0.25145993]
[1752254003917,0.78535407,117580.0,117570.0,0.27615993]
[1752254005266,0.44535407,117580.0,117570.0,0.27615993]
[1752254005712,0.78535407,117580.0,117570.0,0.27615993]
[1752254005940,0.34,117580.0,117570.0,0.27615993]
[1752254006265,0.44535407,117580.0,117570.0,0.27615993]
[1752254006892,0.78535407,117580.0,117570.0,0.27615993]
[1752254007067,0.43482349,117580.0,117570.0,0.27615993]
[1752254007300,0.42462531,117580.0,117570.0,0.27615993]
[1752254009264,0.77482349,117590.0,117580.0,0.0533]
[1752254009480,0.77482349,117590.0,117580.0,0.14068993]
[1752254009807,0.77482349,117590.0,117580.0,0.14365993]
[1752254010770,0.34,117590.0,117580.0,0.14578614]
[1752254011540,0.341,117590.0,117580.0,0.14578614]
[1752254011960,0.77482349,117590.0,117580.0,0.14578614]
[1752254013989,0.34,117590.0,117580.0,0.14578614]
[1752254014579,0.34,117590.0,117580.0,0.48596614]
[1752254014745,0.34,117590.0,117580.0,0.48383993]
[1752254015360,0.76842017,117590.0,117580.0,0.48383993]
[1752254017256,0.75822206,117590.0,117580.0,0.48383993]
[1752254021464,0.72762806,117590.0,117580.0,0.49963029]
[1752254023048,0.73295806,117590.0,117580.0,0.57636029]
[1752254023461,0.73295806,117590.0,117580.0,0.5678633]
[1752254023665,0.72976806,117590.0,117580.0,0.5678633]
[1752254025853,0.7645762,117590.0,117580.0,0.5678633]
[1752254026415,0.7624362,117590.0,117580.0,0.5983733]
[1752254026624,0.7624362,117590.0,117580.0,0.4349833]
[1752254026625,0.32975271,117590.0,117580.0,0.4349833]
[1752254026823,0.7645762,117590.0,117580.0,0.5947233]
[1752254027032,0.7645762,117590.0,117580.0,0.5946833]
[1752254027249,0.75437867,117590.0,117580.0,0.4598833]
[1752254027478,0.75437867,117590.0,117580.0,0.6239733]
[1752254027656,0.75437867,117590.0,117580.0,0.4890133]
[1752254027823,0.75437867,117590.0,117580.0,0.6240133]
[1752254028837,0.76485543,117590.0,117580.0,0.6240133]
[1752254029482,0.74446031,117590.0,117580.0,0.6240133]
[1752254029719,0.74232031,117590.0,117580.0,0.6240133]
[1752254031661,0.73212311,117590.0,117580.0,0.6240133]
[1752254032778,0.69731497,117590.0,117580.0,0.6240133]
[1752254033879,0.73175935,117590.0,117580.0,0.6240133]
[1752254035302,0.73175935,117590.0,117580.0,0.6740133]
[1752254036320,0.73175935,117590.0,117580.0,0.67401815]
[1752254036896,0.73175935,117590.0,117580.0,0.65822294]
[1752254037108,0.73175935,117590.0,117580.0,0.67401811]
[1752254037325,1.1823896,117590.0,117580.0,0.61758811]
[1752254037498,1.2333896,117590.0,117580.0,0.60909088]
[1752254037735,1.22319134,117590.0,117580.0,0.47441451]
[1752254037918,1.21733567,117590.0,117580.0,0.53204157]
[1752254038128,1.28578194,117590.0,117580.0,0.51624277]
[1752254038351,1.28578194,117590.0,117580.0,0.50774554]
[1752254038507,1.28578194,117590.0,117580.0,0.34344522]
[1752254038713,0.0507,117560.0,117550.0,0.01925392]
[1752254038915,0.9466305,117560.0,117550.0,0.25554812]
[1752254039232,0.9466305,117560.0,117550.0,0.24705089]
[1752254039432,0.9718112,117560.0,117550.0,0.11249089]
[1752254039656,0.9718112,117560.0,117550.0,0.10399366]
[1752254039869,0.9718112,117560.0,117540.0,0.0024]
[1752254039870,1.3809523,117560.0,117540.0,0.0024]
[1752254040067,1.3809523,117560.0,117540.0,0.13456]
[1752254040068,0.3901,117550.0,117540.0,0.13456]
[1752254040270,0.39543,117550.0,117540.0,0.13456]
[1752254040433,0.39543,117550.0,117540.0,0.12606277]
[1752254040637,0.0501,117540.0,117530.0,0.0074]
[1752254040834,0.05543,117540.0,117530.0,0.13456]
[1752254041211,0.3912,117530.0,117520.0,0.12850277]
[1752254041337,0.87324414,117530.0,117520.0,0.12850277]
[1752254041535,0.87324414,117530.0,117520.0,0.12000554]
[1752254041536,0.86304177,117530.0,117520.0,0.12000554]
[1752254041896,0.86304177,117530.0,117510.0,0.13496]
[1752254041897,0.82193603,117530.0,117510.0,0.13496]
[1752254042045,0.4354884,117520.0,117510.0,0.08582993]
[1752254042247,0.4376284,117520.0,117510.0,0.22046993]
[1752254042455,0.4408184,117520.0,117510.0,0.22046993]
[1752254043259,0.4408184,117520.0,117510.0,0.13504]
[1752254043260,0.44131591,117520.0,117510.0,0.13504]
[1752254043665,0.78131591,117520.0,117510.0,0.13504]
[1752254044098,0.78131591,117520.0,117510.0,0.13704]
[1752254044301,0.77812591,117520.0,117510.0,0.22454993]
[1752254044466,0.77812591,117520.0,117510.0,0.22757993]
[1752254044670,0.77812591,117520.0,117510.0,0.22557993]
[1752254045795,0.77598591,117520.0,117510.0,0.22557993]
[1752254045995,0.77598591,117520.0,117510.0,0.25217993]
[1752254046182,0.77598591,117520.0,117510.0,0.27737993]
[1752254046986,0.77598591,117520.0,117510.0,0.25217993]
[1752254047822,0.76578428,117520.0,117510.0,0.25217993]
[1752254049683,0.76792428,117520.0,117510.0,0.08790993]
[1752254049887,0.76792428,117520.0,117510.0,0.22250993]
[1752254050531,0.76792428,117520.0,117510.0,0.08582993]
[1752254050532,0.77093428,117520.0,117510.0,0.08582993]
[1752254050936,0.77093428,117520.0,117510.0,0.22042993]
[1752254052862,0.76792428,117520.0,117510.0,0.22042993]
[1752254053480,0.77093428,117520.0,117510.0,0.22042993]
[1752254055318,0.77093428,117520.0,117510.0,0.08582993]
[1752254055525,0.76792428,117520.0,117510.0,0.07943632]
[1752254055729,0.4354884,117520.0,117510.0,0.26911632]
[1752254055938,0.7754884,117520.0,117510.0,0.26911632]
[1752254056147,0.4354884,117520.0,117510.0,0.26911632]
[1752254060551,0.58165167,117550.0,117540.0,0.03869224]
[1752254060552,0.002,117550.0,117540.0,0.03869224]
[1752254060749,0.002,117550.0,117540.0,0.36811134]
[1752254060750,0.8749268,117550.0,117540.0,0.36811134]
[1752254060962,1.29147502,117550.0,117540.0,0.22496907]
[1752254061283,1.35992129,117550.0,117540.0,0.13474917]
[1752254061487,1.49452129,117550.0,117540.0,0.00014917]
[1752254061709,0.34,117540.0,117500.0,0.22592]
[1752254061908,0.34,117540.0,117500.0,0.31184744]
[1752254061909,1.23356502,117510.0,117500.0,0.31184744]
[1752254062130,0.79076751,117510.0,117500.0,0.30334517]
[1752254062468,1.26317502,117510.0,117500.0,0.4294429]
[1752254062676,0.81736751,117510.0,117500.0,0.4294429]
[1752254062881,0.81736751,117510.0,117500.0,0.42094063]
[1752254063359,0.81736751,117510.0,117500.0,0.41243836]
[1752254063567,1.24273828,117510.0,117500.0,0.41243836]
[1752254063752,1.24273828,117510.0,117500.0,0.40393609]
[1752254064060,1.24273828,117510.0,117500.0,0.12659246]
[1752254064061,1.26953828,117510.0,117500.0,0.12659246]
[1752254064466,0.34,117500.0,117480.0,0.02992802]
[1752254064686,0.77859914,117500.0,117490.0,0.22002993]
[1752254064885,0.78054914,117500.0,117490.0,0.22002993]
[1752254065011,0.78054914,117500.0,117490.0,0.18175718]
[1752254065220,0.68054914,117500.0,117490.0,0.18175718]
[1752254065424,0.68054914,117500.0,117490.0,0.17325213]
[1752254065650,0.70575047,117500.0,117490.0,0.14348443]
[1752254065873,1.14133961,117500.0,117490.0,0.13497938]
[1752254066051,1.14133961,117500.0,117490.0,0.13597938]
[1752254066257,1.14133961,117500.0,117490.0,0.09770663]
[1752254066637,1.14133961,117500.0,117490.0,0.09020158]
[1752254066832,1.14133961,117500.0,117490.0,0.08169653]
[1752254067043,1.14133961,117500.0,117490.0,0.21629653]
[1752254067444,1.14133961,117500.0,117490.0,0.20779148]
[1752254067845,1.14133961,117500.0,117490.0,0.19928643]
[1752254068053,1.13832961,117500.0,117490.0,0.19078138]
[1752254068451,1.13832961,117500.0,117490.0,0.18438633]
[1752254068659,0.70274047,117500.0,117490.0,0.18438633]
[1752254068902,1.13832961,117500.0,117490.0,0.17588128]
[1752254069064,0.70274047,117500.0,117490.0,0.17588128]
[1752254069272,0.70274047,117500.0,117490.0,0.16737623]
[1752254069753,1.13832961,117500.0,117490.0,0.15887135]
[1752254070097,1.13832961,117500.0,117490.0,0.15036647]
[1752254070510,1.13832961,117500.0,117490.0,0.14186159]
[1752254070681,0.02715133,117500.0,117490.0,0.30280159]
[1752254071060,1.23832961,117500.0,117490.0,0.35131664]
[1752254071268,1.23832961,117500.0,117490.0,0.40840664]
[1752254071269,0.79058539,117500.0,117490.0,0.40840664]
[1752254073143,0.43608675,117510.0,117490.0,0.40840664]
[1752254073346,0.43608675,117510.0,117500.0,0.14185758]
[1752254073580,0.43608675,117510.0,117500.0,0.14714758]
[1752254073786,0.77608675,117510.0,117500.0,0.14714758]
[1752254075081,0.77708675,117510.0,117500.0,0.14714758]
[1752254075722,0.34149761,117510.0,117500.0,0.14714758]
[1752254075931,0.77708675,117510.0,117500.0,0.14714758]
[1752254076140,0.34149761,117510.0,117500.0,0.14714758]
[1752254077017,0.77708675,117510.0,117500.0,0.14714758]
[1752254078251,0.77708675,117510.0,117500.0,0.48755758]
[1752254078475,0.77708675,117510.0,117500.0,0.48542993]
[1752254079014,0.75667891,117510.0,117500.0,0.48542993]
[1752254081251,0.74647483,117510.0,117500.0,0.48542993]
[1752254082279,0.74850483,117510.0,117500.0,0.45762993]
[1752254082886,0.74850483,117510.0,117500.0,0.48442993]
[1752254083096,0.74647483,117510.0,117500.0,0.48442993]
[1752254083869,0.74850483,117510.0,117500.0,0.45762993]
[1752254084069,0.74850483,117510.0,117500.0,0.42794993]